[Event "Late-Titled-Tuesday-Blitz-August-29-2023"]
[Site "Chess.com"]
[Date "2023.08.29"]
[Round "4"]
[White "Nick12772"]
[Black "ChEsper99"]
[Result "0-1"]
[WhiteElo "2357"]
[BlackElo "2157"]
[TimeControl "180+1"]
[EndTime "14:38:46 PDT"]
[Termination "ChEsper99 won on time"]

1. Nf3 {[%clk 0:03:00.9]} 1... d5 {[%clk 0:02:56.6]} 2. g3 {[%clk 0:03:01.4]}
2... Nf6 {[%clk 0:02:54.9]} 3. Bg2 {[%clk 0:03:01.8]} 3... c6 {[%clk 0:02:52.6]}
4. O-O {[%clk 0:03:02]} 4... g6 {[%clk 0:02:52.7]} 5. d3 {[%clk 0:03:02.4]} 5...
Bg7 {[%clk 0:02:52.7]} 6. Nbd2 {[%clk 0:03:03.3]} 6... O-O {[%clk 0:02:52.5]} 7.
Qe1 {[%clk 0:03:03.9]} 7... Re8 {[%clk 0:02:51.3]} 8. e4 {[%clk 0:03:04.2]} 8...
e5 {[%clk 0:02:51.2]} 9. exd5 {[%clk 0:03:03.2]} 9... cxd5 {[%clk 0:02:37]} 10.
Nb3 {[%clk 0:02:55.9]} 10... Nc6 {[%clk 0:02:35.2]} 11. Bg5 {[%clk 0:02:55.8]}
11... h6 {[%clk 0:02:33]} 12. Bd2 {[%clk 0:02:53.6]} 12... Qd6 {[%clk
0:02:27.7]} 13. Bc3 {[%clk 0:02:52.8]} 13... Bd7 {[%clk 0:02:14.7]} 14. a3
{[%clk 0:02:36.9]} 14... Rac8 {[%clk 0:02:13.5]} 15. Bb4 {[%clk 0:02:37]} 15...
Nxb4 {[%clk 0:02:11.9]} 16. axb4 {[%clk 0:02:37.3]} 16... a6 {[%clk 0:02:09.9]}
17. Nc5 {[%clk 0:02:35.8]} 17... Bc6 {[%clk 0:02:06.3]} 18. c3 {[%clk
0:02:28.7]} 18... Nd7 {[%clk 0:02:05.8]} 19. Nxd7 {[%clk 0:02:27.3]} 19... Qxd7
{[%clk 0:02:06.1]} 20. Qd2 {[%clk 0:02:22.4]} 20... Rcd8 {[%clk 0:01:59.3]} 21.
Rfe1 {[%clk 0:02:18.4]} 21... f5 {[%clk 0:01:56]} 22. Re2 {[%clk 0:01:59.1]}
22... e4 {[%clk 0:01:51.1]} 23. dxe4 {[%clk 0:01:55.4]} 23... dxe4 {[%clk
0:01:48]} 24. Qxd7 {[%clk 0:01:53.8]} 24... Rxd7 {[%clk 0:01:47.3]} 25. Nh4
{[%clk 0:01:37.7]} 25... Kh7 {[%clk 0:01:45.6]} 26. Bf1 {[%clk 0:01:33.9]} 26...
Red8 {[%clk 0:01:38.8]} 27. Ng2 {[%clk 0:01:30.5]} 27... Rd2 {[%clk 0:01:34]}
28. Rae1 {[%clk 0:01:23.3]} 28... Rxe2 {[%clk 0:01:05.4]} 29. Rxe2 {[%clk
0:01:24.2]} 29... g5 {[%clk 0:01:01.6]} 30. Re1 {[%clk 0:00:59]} 30... Rd2
{[%clk 0:00:58.6]} 31. Ne3 {[%clk 0:00:55.8]} 31... Kg6 {[%clk 0:00:37.8]} 32.
Nc4 {[%clk 0:00:51.3]} 32... Rd8 {[%clk 0:00:35.7]} 33. Be2 {[%clk 0:00:47.3]}
33... Bb5 {[%clk 0:00:33.4]} 34. Ne3 {[%clk 0:00:41.3]} 34... Rd2 {[%clk
0:00:28.9]} 35. Bxb5 {[%clk 0:00:38.5]} 35... axb5 {[%clk 0:00:29.8]} 36. Rb1
{[%clk 0:00:36.6]} 36... f4 {[%clk 0:00:27]} 37. Nf1 {[%clk 0:00:32.2]} 37...
Rc2 {[%clk 0:00:21.3]} 38. h3 {[%clk 0:00:21.8]} 38... Kf5 {[%clk 0:00:21.2]}
39. g4+ {[%clk 0:00:19.2]} 39... Ke5 {[%clk 0:00:20.5]} 40. Kg2 {[%clk
0:00:16.9]} 40... Kd5 {[%clk 0:00:19.3]} 41. Rd1+ {[%clk 0:00:15.9]} 41... Kc4
{[%clk 0:00:19.7]} 42. Rd2 {[%clk 0:00:15.6]} 42... Kb3 {[%clk 0:00:16.9]} 43.
Rd7 {[%clk 0:00:14]} 43... Bf6 {[%clk 0:00:09.2]} 44. Kg1 {[%clk 0:00:02.3]}
44... Kxb2 {[%clk 0:00:08.2]} 45. Rxb7 {[%clk 0:00:02.6]} 45... Bxc3 {[%clk
0:00:08.3]} 46. Rxb5 {[%clk 0:00:02.9]} 46... Bd4 {[%clk 0:00:08.5]} 47. Re5
{[%clk 0:00:01.8]} 47... Bxf2+ {[%clk 0:00:05.1]} 0-1

[Event "Late-Titled-Tuesday-Blitz-August-29-2023"]
[Site "Chess.com"]
[Date "2023.08.29"]
[Round "4"]
[White "Kostukov_Alex"]
[Black "slidingknight2775"]
[Result "1-0"]
[WhiteElo "2415"]
[BlackElo "2537"]
[TimeControl "180+1"]
[EndTime "14:38:50 PDT"]
[Termination "Kostukov_Alex won on time"]

1. g3 {[%clk 0:03:00.9]} 1... d5 {[%clk 0:02:58]} 2. Bg2 {[%clk 0:02:59.7]} 2...
Nf6 {[%clk 0:02:58.6]} 3. d3 {[%clk 0:03:00]} 3... c5 {[%clk 0:02:53.6]} 4. e4
{[%clk 0:03:00]} 4... Nc6 {[%clk 0:02:51.8]} 5. exd5 {[%clk 0:02:59.1]} 5...
Nxd5 {[%clk 0:02:51.6]} 6. Ne2 {[%clk 0:03:00]} 6... e5 {[%clk 0:02:42.3]} 7.
Nbc3 {[%clk 0:03:00.9]} 7... Be6 {[%clk 0:02:42.6]} 8. O-O {[%clk 0:02:59.5]}
8... Be7 {[%clk 0:02:42]} 9. f4 {[%clk 0:02:59.8]} 9... exf4 {[%clk 0:02:33.7]}
10. Bxd5 {[%clk 0:02:59.9]} 10... Bxd5 {[%clk 0:02:34.6]} 11. Nxf4 {[%clk
0:03:00.1]} 11... Be6 {[%clk 0:01:49.4]} 12. Nxe6 {[%clk 0:03:00]} 12... fxe6
{[%clk 0:01:50.3]} 13. Be3 {[%clk 0:02:58.7]} 13... Nd4 {[%clk 0:01:40.8]} 14.
Qg4 {[%clk 0:02:42.6]} 14... Bf6 {[%clk 0:01:30.8]} 15. Ne4 {[%clk 0:02:31.5]}
15... O-O {[%clk 0:01:00.9]} 16. Nxf6+ {[%clk 0:01:41.6]} 16... Rxf6 {[%clk
0:01:01.8]} 17. Bg5 {[%clk 0:01:33.1]} 17... Rxf1+ {[%clk 0:00:45.2]} 18. Rxf1
{[%clk 0:01:32.2]} 18... Qd5 {[%clk 0:00:44.9]} 19. Bf6 {[%clk 0:01:21.3]} 19...
g6 {[%clk 0:00:27.3]} 20. c4 {[%clk 0:01:20.9]} 20... Qd7 {[%clk 0:00:23.2]} 21.
Bxd4 {[%clk 0:01:20.5]} 21... cxd4 {[%clk 0:00:24.1]} 22. Rf6 {[%clk 0:01:18.6]}
22... Re8 {[%clk 0:00:21.1]} 23. h4 {[%clk 0:01:13.2]} 23... Kg7 {[%clk
0:00:16.9]} 24. Rf4 {[%clk 0:01:09.2]} 24... Rd8 {[%clk 0:00:12.5]} 25. h5
{[%clk 0:01:09.5]} 25... e5 {[%clk 0:00:12.5]} 26. Re4 {[%clk 0:01:02.6]} 26...
Qxg4 {[%clk 0:00:12.3]} 27. Rxg4 {[%clk 0:01:02.8]} 27... Kf6 {[%clk 0:00:12.9]}
28. hxg6 {[%clk 0:01:03]} 28... hxg6 {[%clk 0:00:13.8]} 29. Re4 {[%clk
0:01:02.7]} 29... Kf5 {[%clk 0:00:09.2]} 30. Kg2 {[%clk 0:01:02.5]} 30... a6
{[%clk 0:00:08]} 31. Re2 {[%clk 0:01:02.1]} 31... b5 {[%clk 0:00:07.8]} 32. c5
{[%clk 0:01:01.2]} 32... b4 {[%clk 0:00:05.6]} 33. Kf3 {[%clk 0:01:00.9]} 33...
Rc8 {[%clk 0:00:05.5]} 34. Rc2 {[%clk 0:00:57.3]} 34... e4+ {[%clk 0:00:04.4]}
35. dxe4+ {[%clk 0:00:57]} 35... Ke5 {[%clk 0:00:05.3]} 36. c6 {[%clk
0:00:50.2]} 36... d3 {[%clk 0:00:05.1]} 37. Rd2 {[%clk 0:00:48.4]} 37... Rxc6
{[%clk 0:00:05.5]} 38. Rxd3 {[%clk 0:00:48.6]} 38... Rc2 {[%clk 0:00:05.3]} 39.
Rd5+ {[%clk 0:00:46.3]} 39... Ke6 {[%clk 0:00:05.3]} 40. Ra5 {[%clk 0:00:47.1]}
40... Rxb2 {[%clk 0:00:05.5]} 41. Rxa6+ {[%clk 0:00:47.8]} 41... Ke5 {[%clk
0:00:05.6]} 42. Ra5+ {[%clk 0:00:46.5]} 42... Ke6 {[%clk 0:00:05.3]} 43. Kf4
{[%clk 0:00:47]} 43... Rf2+ {[%clk 0:00:04.7]} 44. Kg5 {[%clk 0:00:47]} 44...
Rg2 {[%clk 0:00:04]} 45. g4 {[%clk 0:00:47.3]} 45... Rg3 {[%clk 0:00:01.9]} 46.
Rb5 {[%clk 0:00:42.3]} 46... Rg2 {[%clk 0:00:01.9]} 47. Rxb4 {[%clk 0:00:41.5]}
47... Ke5 {[%clk 0:00:02.5]} 48. a4 {[%clk 0:00:40.3]} 48... Kd6 {[%clk
0:00:03.1]} 49. a5 {[%clk 0:00:40.1]} 49... Ra2 {[%clk 0:00:02.8]} 50. Rb6+
{[%clk 0:00:40.2]} 50... Ke5 {[%clk 0:00:03.7]} 51. a6 {[%clk 0:00:39.9]} 51...
Kxe4 {[%clk 0:00:04.2]} 52. Rxg6 {[%clk 0:00:39.7]} 52... Ra4 {[%clk 0:00:02.7]}
53. Kh6 {[%clk 0:00:39.7]} 53... Kf4 {[%clk 0:00:02.9]} 54. g5 {[%clk
0:00:38.7]} 54... Ra5 {[%clk 0:00:03.5]} 55. Rf6+ {[%clk 0:00:38.7]} 55... Ke5
{[%clk 0:00:04]} 56. Kg6 {[%clk 0:00:38.9]} 56... Ra1 {[%clk 0:00:03.8]} 57. Kf7
{[%clk 0:00:39.1]} 57... Rc1 {[%clk 0:00:02.2]} 58. Re6+ {[%clk 0:00:38.7]}
58... Kf5 {[%clk 0:00:02.1]} 59. g6 {[%clk 0:00:37]} 59... Rg1 {[%clk
0:00:01.1]} 60. g7 {[%clk 0:00:35.6]} 1-0

[Event "Late-Titled-Tuesday-Blitz-August-29-2023"]
[Site "Chess.com"]
[Date "2023.08.29"]
[Round "4"]
[White "dorpato"]
[Black "Fore_Man"]
[Result "1/2-1/2"]
[WhiteElo "2012"]
[BlackElo "2301"]
[TimeControl "180+1"]
[EndTime "14:38:50 PDT"]
[Termination "Game drawn - insufficient material"]

1. e4 {[%clk 0:03:00.9]} 1... Nc6 {[%clk 0:02:59.7]} 2. Nf3 {[%clk 0:02:59.8]}
2... d5 {[%clk 0:02:59.5]} 3. exd5 {[%clk 0:02:59.3]} 3... Qxd5 {[%clk
0:03:00.4]} 4. Nc3 {[%clk 0:02:59.8]} 4... Qa5 {[%clk 0:03:00.8]} 5. d4 {[%clk
0:02:57.9]} 5... Bg4 {[%clk 0:03:01]} 6. Be2 {[%clk 0:02:55]} 6... O-O-O {[%clk
0:03:01.3]} 7. Be3 {[%clk 0:02:51.9]} 7... e5 {[%clk 0:03:01.7]} 8. Nxe5 {[%clk
0:02:35.7]} 8... Bxe2 {[%clk 0:02:41.7]} 9. Qxe2 {[%clk 0:02:29.4]} 9... Nxe5
{[%clk 0:02:35.5]} 10. dxe5 {[%clk 0:02:28.8]} 10... Bb4 {[%clk 0:02:36.4]} 11.
Bd2 {[%clk 0:02:23.7]} 11... Ne7 {[%clk 0:02:36.8]} 12. O-O {[%clk 0:02:15.1]}
12... Nc6 {[%clk 0:02:37.4]} 13. a3 {[%clk 0:02:11.2]} 13... Nd4 {[%clk
0:02:27.7]} 14. Qg4+ {[%clk 0:02:07.2]} 14... Kb8 {[%clk 0:02:27]} 15. axb4
{[%clk 0:02:04.5]} 15... Qxb4 {[%clk 0:02:27.9]} 16. Rab1 {[%clk 0:01:54.8]}
16... Nxc2 {[%clk 0:02:26.4]} 17. Qxb4 {[%clk 0:01:54.2]} 17... Nxb4 {[%clk
0:02:25.8]} 18. Be3 {[%clk 0:01:53.9]} 18... Nc6 {[%clk 0:02:25]} 19. f4 {[%clk
0:01:53.2]} 19... Rd3 {[%clk 0:02:24.4]} 20. Bf2 {[%clk 0:01:52.8]} 20... Rd2
{[%clk 0:02:22.7]} 21. Rfd1 {[%clk 0:01:52.1]} 21... Rhd8 {[%clk 0:02:21.7]} 22.
Rxd2 {[%clk 0:01:51.6]} 22... Rxd2 {[%clk 0:02:22.6]} 23. Rd1 {[%clk 0:01:51.5]}
23... Rxb2 {[%clk 0:02:22.7]} 24. f5 {[%clk 0:01:48.4]} 24... Rc2 {[%clk
0:02:22.4]} 25. Ne4 {[%clk 0:01:42.9]} 25... Kc8 {[%clk 0:02:18.8]} 26. Bg3
{[%clk 0:01:39]} 26... Nd8 {[%clk 0:02:13.6]} 27. Ng5 {[%clk 0:01:36.5]} 27...
h6 {[%clk 0:02:12.1]} 28. e6 {[%clk 0:01:26.2]} 28... fxe6 {[%clk 0:02:02.5]}
29. Nxe6 {[%clk 0:01:10.6]} 29... Nxe6 {[%clk 0:02:02.1]} 30. fxe6 {[%clk
0:01:10.3]} 30... Re2 {[%clk 0:02:02.8]} 31. Rd7 {[%clk 0:01:00]} 31... Rxe6
{[%clk 0:01:53.6]} 32. Rxc7+ {[%clk 0:00:59.8]} 32... Kd8 {[%clk 0:01:52.8]} 33.
Rxb7 {[%clk 0:00:58.7]} 33... g5 {[%clk 0:01:49.4]} 34. Rxa7 {[%clk 0:00:58.1]}
34... Ke8 {[%clk 0:01:50.1]} 35. Rh7 {[%clk 0:00:53.2]} 35... Kf8 {[%clk
0:01:49.9]} 36. Rh8+ {[%clk 0:00:52.4]} 36... Kg7 {[%clk 0:01:50]} 37. Ra8
{[%clk 0:00:52.1]} 37... Rc6 {[%clk 0:01:49]} 38. h3 {[%clk 0:00:52.1]} 38...
Rc1+ {[%clk 0:01:48.7]} 39. Kh2 {[%clk 0:00:52.5]} 39... Rc2 {[%clk 0:01:49.2]}
40. Be5+ {[%clk 0:00:52.4]} 40... Kg6 {[%clk 0:01:49.7]} 41. Ra6+ {[%clk
0:00:52]} 41... Kf5 {[%clk 0:01:49.3]} 42. Bg7 {[%clk 0:00:45]} 42... h5 {[%clk
0:01:49.2]} 43. Ra5+ {[%clk 0:00:44.9]} 43... Kg6 {[%clk 0:01:49]} 44. Bd4
{[%clk 0:00:43]} 44... Rc4 {[%clk 0:01:44.9]} 45. Be3 {[%clk 0:00:42.8]} 45...
g4 {[%clk 0:01:38.7]} 46. Rg5+ {[%clk 0:00:40.8]} 46... Kf6 {[%clk 0:01:37.4]}
47. Rxh5 {[%clk 0:00:40.6]} 47... gxh3 {[%clk 0:01:38.1]} 48. Rxh3 {[%clk
0:00:39.2]} 48... Rc2 {[%clk 0:01:37.5]} 49. Rf3+ {[%clk 0:00:38.8]} 49... Kg6
{[%clk 0:01:37.4]} 50. Kh3 {[%clk 0:00:39]} 50... Rc3 {[%clk 0:01:37.1]} 51.
Rg3+ {[%clk 0:00:38.6]} 51... Kf5 {[%clk 0:01:37]} 52. Bf2 {[%clk 0:00:36.5]}
52... Rc2 {[%clk 0:01:36]} 53. Bd4 {[%clk 0:00:31.8]} 53... Rc8 {[%clk
0:01:35.8]} 54. Rf3+ {[%clk 0:00:25.6]} 54... Kg5 {[%clk 0:01:35.4]} 55. Bf6+
{[%clk 0:00:25.6]} 55... Kg6 {[%clk 0:01:35.6]} 56. Bh4 {[%clk 0:00:25.3]} 56...
Rc4 {[%clk 0:01:34.7]} 57. g4 {[%clk 0:00:24]} 57... Ra4 {[%clk 0:01:33.4]} 58.
Rf6+ {[%clk 0:00:23.4]} 58... Kg7 {[%clk 0:01:33.8]} 59. Bg5 {[%clk 0:00:21.6]}
59... Ra5 {[%clk 0:01:33.5]} 60. Kh4 {[%clk 0:00:20.5]} 60... Ra1 {[%clk
0:01:32.1]} 61. Rf3 {[%clk 0:00:19.4]} 61... Rh1+ {[%clk 0:01:31.9]} 62. Rh3
{[%clk 0:00:19.4]} 62... Rf1 {[%clk 0:01:32.2]} 63. Bd8 {[%clk 0:00:18.8]} 63...
Rd1 {[%clk 0:01:31.8]} 64. Ba5 {[%clk 0:00:18.6]} 64... Rd5 {[%clk 0:01:32.1]}
65. Bc3+ {[%clk 0:00:18.8]} 65... Kg6 {[%clk 0:01:32.4]} 66. Rf3 {[%clk
0:00:18.5]} 66... Rc5 {[%clk 0:01:32]} 67. Rf6+ {[%clk 0:00:18.1]} 67... Kh7
{[%clk 0:01:32.4]} 68. Bd4 {[%clk 0:00:18]} 68... Rc4 {[%clk 0:01:32]} 69. Rd6
{[%clk 0:00:17.8]} 69... Rc1 {[%clk 0:01:30.1]} 70. Kg5 {[%clk 0:00:17.7]} 70...
Rf1 {[%clk 0:01:28.2]} 71. Rd7+ {[%clk 0:00:17.6]} 71... Kg8 {[%clk 0:01:28.1]}
72. Kg6 {[%clk 0:00:17]} 72... Rf8 {[%clk 0:01:24.9]} 73. Bc5 {[%clk 0:00:16.9]}
73... Re8 {[%clk 0:01:20.8]} 74. Rg7+ {[%clk 0:00:16.7]} 74... Kh8 {[%clk
0:01:21.2]} 75. Rh7+ {[%clk 0:00:16.9]} 75... Kg8 {[%clk 0:01:21.2]} 76. Rh5
{[%clk 0:00:15.3]} 76... Re6+ {[%clk 0:01:21]} 77. Kf5 {[%clk 0:00:15.6]} 77...
Rc6 {[%clk 0:01:21.3]} 78. Kf4 {[%clk 0:00:15.8]} 78... Kf7 {[%clk 0:01:20.4]}
79. Rf5+ {[%clk 0:00:14.9]} 79... Kg6 {[%clk 0:01:20.3]} 80. g5 {[%clk
0:00:13.6]} 80... Ra6 {[%clk 0:01:20.7]} 81. Rf6+ {[%clk 0:00:13.6]} 81... Rxf6+
{[%clk 0:01:20.5]} 82. gxf6 {[%clk 0:00:13.8]} 82... Kxf6 {[%clk 0:01:21.4]}
1/2-1/2

[Event "Late-Titled-Tuesday-Blitz-August-29-2023"]
[Site "Chess.com"]
[Date "2023.08.29"]
[Round "4"]
[White "frederiksvane"]
[Black "KaydenTroffChess"]
[Result "0-1"]
[WhiteElo "2938"]
[BlackElo "2802"]
[TimeControl "180+1"]
[EndTime "14:38:54 PDT"]
[Termination "KaydenTroffChess won by resignation"]

1. c4 {[%clk 0:03:00.2]} 1... Nf6 {[%clk 0:02:59.2]} 2. g3 {[%clk 0:03:00.3]}
2... c6 {[%clk 0:02:51.4]} 3. Bg2 {[%clk 0:02:58.9]} 3... d5 {[%clk 0:02:52]} 4.
Nf3 {[%clk 0:02:59.4]} 4... g6 {[%clk 0:02:51.7]} 5. b3 {[%clk 0:02:56.6]} 5...
Bg7 {[%clk 0:02:51.1]} 6. Bb2 {[%clk 0:02:57.2]} 6... O-O {[%clk 0:02:51.1]} 7.
O-O {[%clk 0:02:57.8]} 7... Bf5 {[%clk 0:02:40.9]} 8. Nc3 {[%clk 0:02:57.5]}
8... Na6 {[%clk 0:02:34.9]} 9. d4 {[%clk 0:02:55.3]} 9... Ne4 {[%clk 0:02:18.8]}
10. Rc1 {[%clk 0:02:36.5]} 10... Qa5 {[%clk 0:02:08.4]} 11. a3 {[%clk
0:02:26.7]} 11... Rad8 {[%clk 0:01:55.4]} 12. b4 {[%clk 0:02:24.9]} 12... Nxc3
{[%clk 0:01:54.5]} 13. Bxc3 {[%clk 0:02:22.1]} 13... Qxa3 {[%clk 0:01:35.2]} 14.
cxd5 {[%clk 0:02:13.4]} 14... Rxd5 {[%clk 0:01:17.8]} 15. Ne5 {[%clk 0:01:58]}
15... Rdd8 {[%clk 0:01:02.1]} 16. f4 {[%clk 0:01:42.5]} 16... Be6 {[%clk
0:00:54.9]} 17. Qd2 {[%clk 0:01:39.9]} 17... Qa4 {[%clk 0:00:44.9]} 18. e4
{[%clk 0:01:13]} 18... Qb5 {[%clk 0:00:40.6]} 19. Rf2 {[%clk 0:01:09.4]} 19...
f6 {[%clk 0:00:36.9]} 20. Nd3 {[%clk 0:01:08.8]} 20... Bc4 {[%clk 0:00:36.4]}
21. Nc5 {[%clk 0:01:06.4]} 21... Nxc5 {[%clk 0:00:33.3]} 22. bxc5 {[%clk
0:01:07.3]} 22... e5 {[%clk 0:00:33.2]} 23. fxe5 {[%clk 0:01:08.2]} 23... fxe5
{[%clk 0:00:32.4]} 24. Rxf8+ {[%clk 0:01:08.7]} 24... Bxf8 {[%clk 0:00:32.4]}
25. Qg5 {[%clk 0:01:09]} 25... exd4 {[%clk 0:00:22.7]} 26. Qxd8 {[%clk
0:01:00.3]} 26... dxc3 {[%clk 0:00:22.2]} 27. Kh1 {[%clk 0:00:56.9]} 27... Qb2
{[%clk 0:00:19.5]} 28. Qd1 {[%clk 0:00:55.1]} 28... Bb3 {[%clk 0:00:18.8]} 29.
Qe1 {[%clk 0:00:45.8]} 29... c2 {[%clk 0:00:19.3]} 30. Qd2 {[%clk 0:00:43.4]}
30... a5 {[%clk 0:00:15.5]} 31. e5 {[%clk 0:00:40.7]} 31... Qxe5 {[%clk
0:00:14.9]} 32. Qd3 {[%clk 0:00:40.6]} 32... a4 {[%clk 0:00:13.7]} 33. Be4
{[%clk 0:00:33.3]} 33... Bh6 {[%clk 0:00:10.8]} 34. Qd8+ {[%clk 0:00:33.2]}
34... Bf8 {[%clk 0:00:08.9]} 35. Qd3 {[%clk 0:00:31.6]} 35... Qxc5 {[%clk
0:00:08.4]} 36. Qe2 {[%clk 0:00:27.9]} 36... Qc4 {[%clk 0:00:06.6]} 37. Qxc4+
{[%clk 0:00:20]} 37... Bxc4 {[%clk 0:00:07.5]} 38. Rxc2 {[%clk 0:00:20.8]} 38...
Bb3 {[%clk 0:00:07.8]} 39. Re2 {[%clk 0:00:20.2]} 39... a3 {[%clk 0:00:07.6]}
40. Bb1 {[%clk 0:00:16.5]} 40... c5 {[%clk 0:00:08.2]} 41. Kg2 {[%clk
0:00:15.5]} 41... c4 {[%clk 0:00:08]} 42. Kf3 {[%clk 0:00:15.3]} 42... Bg7
{[%clk 0:00:08.3]} 43. Ke4 {[%clk 0:00:14.7]} 43... Bb2 {[%clk 0:00:08.3]} 44.
Rf2 {[%clk 0:00:08.1]} 44... c3 {[%clk 0:00:08.5]} 45. Kd3 {[%clk 0:00:07.2]}
45... a2 {[%clk 0:00:08.9]} 46. Bxa2 {[%clk 0:00:07.6]} 46... Bxa2 {[%clk
0:00:09.8]} 47. Re2 {[%clk 0:00:08.2]} 47... Bb1+ {[%clk 0:00:09.6]} 48. Ke3
{[%clk 0:00:08.2]} 48... c2 {[%clk 0:00:10.2]} 49. Rxc2 {[%clk 0:00:08.8]} 49...
Bxc2 {[%clk 0:00:11.1]} 50. Kd2 {[%clk 0:00:09.5]} 50... Bf5 {[%clk 0:00:11.5]}
51. Ke3 {[%clk 0:00:10.4]} 51... Be6 {[%clk 0:00:12.4]} 52. Kf2 {[%clk
0:00:11.2]} 52... Bf6 {[%clk 0:00:12.9]} 53. Kf3 {[%clk 0:00:12.1]} 53... h5
{[%clk 0:00:13.4]} 54. Kf4 {[%clk 0:00:13]} 54... Kg7 {[%clk 0:00:14.2]} 0-1

[Event "Late-Titled-Tuesday-Blitz-August-29-2023"]
[Site "Chess.com"]
[Date "2023.08.29"]
[Round "4"]
[White "jcmesafischer"]
[Black "lefonghua"]
[Result "0-1"]
[WhiteElo "2451"]
[BlackElo "2646"]
[TimeControl "180+1"]
[EndTime "14:38:54 PDT"]
[Termination "lefonghua won by resignation"]

1. Nf3 {[%clk 0:02:59.8]} 1... Nf6 {[%clk 0:03:00]} 2. g3 {[%clk 0:02:59.6]}
2... g6 {[%clk 0:03:00.5]} 3. Bg2 {[%clk 0:03:00]} 3... Bg7 {[%clk 0:03:01.2]}
4. d4 {[%clk 0:03:00.3]} 4... O-O {[%clk 0:03:01.6]} 5. O-O {[%clk 0:03:00.5]}
5... d6 {[%clk 0:03:00.1]} 6. c4 {[%clk 0:03:00.5]} 6... Nc6 {[%clk 0:03:00.3]}
7. d5 {[%clk 0:03:00.1]} 7... Na5 {[%clk 0:02:59.2]} 8. Qa4 {[%clk 0:02:58.9]}
8... c5 {[%clk 0:02:55.6]} 9. Bd2 {[%clk 0:02:56.5]} 9... b6 {[%clk 0:02:50.5]}
10. Bxa5 {[%clk 0:02:53.1]} 10... bxa5 {[%clk 0:02:50.4]} 11. Nc3 {[%clk
0:02:53.4]} 11... Rb8 {[%clk 0:02:46.5]} 12. Qc2 {[%clk 0:02:51.2]} 12... Bf5
{[%clk 0:02:38.8]} 13. e4 {[%clk 0:02:45.3]} 13... Bg4 {[%clk 0:02:35.9]} 14.
Rfe1 {[%clk 0:02:43]} 14... Bxf3 {[%clk 0:02:35.1]} 15. Bxf3 {[%clk 0:02:42.7]}
15... Nd7 {[%clk 0:02:35.3]} 16. Be2 {[%clk 0:02:41]} 16... a6 {[%clk
0:02:30.1]} 17. Kg2 {[%clk 0:02:39.8]} 17... Bd4 {[%clk 0:02:28.3]} 18. f4
{[%clk 0:02:34.4]} 18... e5 {[%clk 0:02:27]} 19. f5 {[%clk 0:02:29.7]} 19... Kg7
{[%clk 0:02:14.3]} 20. Rf1 {[%clk 0:02:28.4]} 20... Qb6 {[%clk 0:02:01.9]} 21.
Rab1 {[%clk 0:02:26.8]} 21... g5 {[%clk 0:01:55.5]} 22. b3 {[%clk 0:01:46.8]}
22... Qb4 {[%clk 0:01:46.9]} 23. Na4 {[%clk 0:01:46.1]} 23... Nf6 {[%clk
0:01:42.7]} 24. Kh1 {[%clk 0:01:35.9]} 24... Rg8 {[%clk 0:01:38.2]} 25. Rf3
{[%clk 0:01:21.5]} 25... Kf8 {[%clk 0:01:35.1]} 26. Rd3 {[%clk 0:01:18.1]} 26...
Ke7 {[%clk 0:01:33.8]} 27. Rf1 {[%clk 0:01:17.1]} 27... h5 {[%clk 0:01:32.9]}
28. h3 {[%clk 0:01:13.8]} 28... Rh8 {[%clk 0:01:29.4]} 29. Kg2 {[%clk
0:01:13.1]} 29... Qa3 {[%clk 0:01:21.3]} 30. Qd2 {[%clk 0:01:08.1]} 30... Nxe4
{[%clk 0:01:14.5]} 31. Qxa5 {[%clk 0:01:06.7]} 31... Qxa2 {[%clk 0:01:11.4]} 32.
Qc7+ {[%clk 0:00:54]} 32... Kf6 {[%clk 0:01:11.4]} 33. Re1 {[%clk 0:00:38.6]}
33... Rxb3 {[%clk 0:00:49.1]} 34. Rxb3 {[%clk 0:00:36.1]} 34... Qxb3 {[%clk
0:00:49.3]} 35. Bf3 {[%clk 0:00:36.7]} 35... Qxa4 {[%clk 0:00:44]} 36. Rxe4
{[%clk 0:00:32]} 36... Qc2+ {[%clk 0:00:32.7]} 37. Re2 {[%clk 0:00:30.9]} 37...
Qxf5 {[%clk 0:00:30.9]} 38. Qxd6+ {[%clk 0:00:29.5]} 38... Kg7 {[%clk 0:00:31]}
39. Be4 {[%clk 0:00:10]} 39... Qf6 {[%clk 0:00:30.6]} 40. Qxf6+ {[%clk
0:00:09.9]} 40... Kxf6 {[%clk 0:00:31.5]} 41. Ra2 {[%clk 0:00:10]} 41... Ra8
{[%clk 0:00:26.8]} 42. d6 {[%clk 0:00:10.3]} 42... Ra7 {[%clk 0:00:26.1]} 43. d7
{[%clk 0:00:09.4]} 43... Ke7 {[%clk 0:00:25]} 44. Bc6 {[%clk 0:00:09.1]} 44...
Rc7 {[%clk 0:00:22]} 45. Rxa6 {[%clk 0:00:07.3]} 45... Rxd7 {[%clk 0:00:16.9]}
46. Bxd7 {[%clk 0:00:06.7]} 46... Kxd7 {[%clk 0:00:17.8]} 47. Rf6 {[%clk
0:00:03.6]} 47... Ke7 {[%clk 0:00:17.7]} 48. Rf5 {[%clk 0:00:04.3]} 48... f6
{[%clk 0:00:18.2]} 49. Kf3 {[%clk 0:00:04.6]} 49... Ke6 {[%clk 0:00:17.3]} 50.
g4 {[%clk 0:00:05.2]} 50... hxg4+ {[%clk 0:00:16]} 51. hxg4 {[%clk 0:00:06.1]}
51... Bc3 {[%clk 0:00:14.6]} 52. Ke4 {[%clk 0:00:06.5]} 52... Bd2 {[%clk
0:00:14.8]} 53. Rf1 {[%clk 0:00:06.2]} 53... Bc3 {[%clk 0:00:14.8]} 54. Rb1
{[%clk 0:00:06.5]} 54... Bd4 {[%clk 0:00:14.6]} 55. Ra1 {[%clk 0:00:07]} 55...
Bxa1 {[%clk 0:00:14]} 56. Kf3 {[%clk 0:00:07.5]} 56... f5 {[%clk 0:00:14]} 0-1